Cogmind - Beta 11 @@@ ROGUE MODE // 2022.07.11 @ 10:20:56 Player: CreepyD Result: Destroyed by G-47 Trooper with Particle Gun Performance ------------- Evolutions (2) 1000 Regions Visited (6) 1200 Robots Destroyed (74) 370 Value Destroyed (2394) 2394 Prototype IDs (9) 180 Alien Tech Used (0) 0 Bonus (964) 964 TOTAL SCORE: 6108 Bonus ------- High Alert Combat Kills 264 Entered Garrisons 200 Used RIF Installer 500 Cogmind --------- Core Integrity 0/550 Matter 270/300 Energy 275/280 System Corruption 0% Temperature Cool (9) Movement Walking (130) Location -8/Storage Parts ------- > --- POWER (1) -------- Heavy Ion Engine > --- PROPULSION (4) --- Improved Titanium Leg Improved Titanium Leg Improved Titanium Leg Aerolev Unit > --- UTILITY (4) ------ Improved Cooling System Transport Network Coupler Targeting Computer Core Analyzer > --- WEAPON (2) ------- Heavy EM Shotgun Assault Cannon > --- INVENTORY (5) ---- Improved Titanium Leg Aerolev Unit Melee Analysis Suite Improved Shield Generator Hacking Suite Peak State ------------ > --- POWER ------------ Cooled Ion Engine > --- PROPULSION ------- Improved Titanium Leg Improved Titanium Leg Improved Titanium Leg Aerolev Unit > --- UTILITY ---------- Improved Cooling System Transport Network Coupler Targeting Computer Core Analyzer > --- WEAPON ----------- Advanced Beam Rifle Assault Cannon > --- INVENTORY -------- Heavy Ion Engine Improved Titanium Leg Aerolev Unit Melee Analysis Suite Improved Shield Generator [Rating: 37] Favorites ----------- Power Cooled Ion Engine Engine Cooled Ion Engine Propulsion Improved Titanium Leg Leg Improved Titanium Leg Wheel Wheel Hover Unit Improved Hover Unit Flight Unit Improved VTOL Module Utility Transport Network Coupler Device Sensor Array Storage Small Storage Unit Processor Transport Network Coupler Protection Hardened Medium Armor Plating Weapon Mini Grenade Launcher Energy Gun Heavy EM Shotgun Energy Cannon Heavy Particle Cannon Ballistic Gun Assault Rifle Ballistic Cannon Assault Cannon Launcher Mini Grenade Launcher Impact Weapon Hammer Build | -11 -10 -9 -8 -8 -8 -8 ------- Run | Scr Mat Mat Mat Gar Mat Sto Slots Evolved 4 | . . 2 2 . . . Power . | . . . . . . . Propulsion 2 | . . 1 1 . . . Utility 2 | . . 1 1 . . . Weapon . | . . . . . . . Parts Attached 61 | 8 2 18 5 5 11 12 Power 8 | 1 . 3 . . 1 3 Engine 8 | 1 . 3 . . 1 3 Core . | . . . . . . . Reactor . | . . . . . . . Propulsion 24 | 3 . 5 2 5 7 2 Treads . | . . . . . . . Leg 13 | . . . . 5 7 1 Wheel 5 | 3 . 1 1 . . . Hover 5 | . . 4 . . . 1 Flight 1 | . . . 1 . . . Utility 14 | 2 1 4 3 . 2 2 Device 8 | 1 1 3 . . 1 2 Storage 1 | 1 . . . . . . Processor 3 | . . 1 1 . 1 . Hackware . | . . . . . . . Protection 2 | . . . 2 . . . Artifact . | . . . . . . . Weapon 15 | 2 1 6 . . 1 5 Energy Gun 5 | . . 2 . . . 3 Energy Cannon 2 | . . . . . 1 1 Ballistic Gun 2 | 2 . . . . . . Ballistic Cannon 1 | . . . . . . 1 Launcher 4 | . . 4 . . . . Special Weapon . | . . . . . . . Impact Weapon 1 | . 1 . . . . . Slashing Weapon . | . . . . . . . Piercing Weapon . | . . . . . . . Special Melee Weapon . | . . . . . . . Unidentified Prototypes 9 | . . 3 1 . . 5 Corrupted Parts 1 | . . 1 . . . . System Corruption 5 | . . 5 . . . . Parts Lost 25 | . . 8 3 10 . 4 Power 2 | . . 1 . 1 . . Propulsion 12 | . . 4 1 6 . 1 Utility 7 | . . 2 2 2 . 1 Weapon 4 | . . 1 . 1 . 2 Highest Loss Streak 5 | . . 3 2 5 . 4 To Critical Strikes . | . . . . . . . Average Slot Usage (%) 83 | . 100 86 77 66 85 95 Engine 8 | . 14 10 9 4 8 8 Leg 11 | . . . . 8 32 30 Wheel 6 | . 28 13 6 1 . . Hover 5 | . . 9 10 4 . 4 Flight 1 | . . . 2 6 . . Device 10 | . 25 22 7 . 8 7 Processor 15 | . . 8 11 18 19 27 Protection 3 | . . . 12 8 . . Energy Gun 1 | . . 2 . . . 4 Energy Cannon 1 | . . . . . 8 3 Ballistic Gun 2 | . 24 . . . . . Ballistic Cannon 1 | . . . . . . 6 Launcher 6 | . . 7 9 9 9 3 Impact Weapon 5 | . 3 11 9 6 . . Naked Turns . | . . . . . . . Heaviest Build 25 | 12 12 13 25 24 20 19 Greatest Support 80 | 26 20 30 16 16 80 80 Greatest Overweight (x) 3 | 1 . 1 1 3 . . Average Overweight (x) . | . . . . . . . Largest Inventory Capacity 8 | 8 8 5 5 5 5 5 Average Capacity 5 | 6 5 5 5 5 5 5 Most Carried 5 | 4 5 5 5 5 5 5 Average Carried 4 | 1 4 3 4 4 3 4 Final Capacity 8 | 8 5 5 5 5 5 5 Final Carried 5 | 3 5 4 4 4 5 5 Class Distribution -------------------- 100% | Mutant Dominant Class ---------------- Mutant | -10/Materials Mutant | -9/Materials Mutant | -8/Materials Mutant | -8/Garrison Mutant | -8/Materials Mutant | -8/Storage Resources | -11 -10 -9 -8 -8 -8 -8 ----------- Run | Scr Mat Mat Mat Gar Mat Sto Matter Collected 1458 | 256 81 232 244 111 229 305 Remotely 191 | . . 119 72 . . . Salvage Created 2256 | 119 178 507 276 304 229 643 Parts 116 | 5 8 24 21 17 12 29 Haulers Intercepted 8 | . 1 2 . . 1 4 Recyclers Shooed 3 | 1 . 2 . . . . Parts Field Recycled . | . . . . . . . Retrieved Matter . | . . . . . . . Parts Self-Destructed . | . . . . . . . Prevented . | . . . . . . . Kills | -11 -10 -9 -8 -8 -8 -8 ------- Run | Scr Mat Mat Mat Gar Mat Sto Combat Hostiles Destroyed 53 | . 3 7 10 20 4 9 Guns 3 | . 3 . . . . . Cannons 9 | . . . . . 3 6 AOE 38 | . . 5 10 20 . 3 Classes Destroyed 10 | 2 2 4 2 . . . Worker 1 | . . 1 . . . . Builder 3 | . . 1 . . . 2 Tunneler 1 | 1 . . . . . . Hauler 8 | . 1 2 . . 1 4 Recycler 4 | 1 . 1 1 . . 1 Operator 1 | . . . 1 . . . Watcher 3 | . . 2 1 . . . Swarmer 13 | . . . 7 6 . . Grunt 30 | . 3 4 . 14 2 7 Sentry 10 | . . 3 3 . 2 2 Best Kill Streak 10 | 2 3 4 5 10 2 8 Combat Bots Only 10 | . 3 3 5 10 2 5 Max Kills in Single Turn 3 | 1 1 3 2 2 1 3 Gunslinging . | . . . . . . . Exploded 3 | . . 2 2 2 . 3 Melee . | . . . . . . . Uniques/NPCs Destroyed . | . . . . . . . Combat | -11 -10 -9 -8 -8 -8 -8 -------- Run | Scr Mat Mat Mat Gar Mat Sto Damage Taken 2814 | . 45 580 515 823 150 701 Core 670 | . 11 97 204 181 13 164 Absorbed by Shields . | . . . . . . . Core Remaining (%) 90 | 100 95 75 . . . . Volleys Fired 128 | 6 13 10 16 28 14 41 Largest 2 | 2 2 1 1 1 2 2 Hottest 119 | 40 40 33 30 30 105 119 Shots Fired 165 | 12 26 10 16 28 15 58 Gun 48 | 12 26 . . . . 10 Cannon 59 | . . . . . 14 45 Launcher 58 | . . 10 16 28 1 3 Special . | . . . . . . . Kinetic 67 | 12 26 . . . . 29 Thermal 34 | . . . . . 14 20 Explosive 55 | . . 7 16 28 1 3 Electromagnetic 9 | . . 3 . . . 6 Robot Hit Streak 15 | 6 7 7 3 7 13 15 Robot Miss Streak 4 | 1 3 2 4 3 1 4 Penetration Max . | . . . . . . . Secondary Targets . | . . . . . . . Shots Hit Robots 130 | 9 22 25 7 18 13 36 Core Hits 124 | 4 9 13 18 40 7 33 Critical Kills 1 | . . . . . 1 . Critical Parts Destroyed 1 | . . 1 . . . . Critical Strikes 5 | . . 2 . . 1 2 Burn 1 | . . . . . . 1 Meltdown 1 | . . . . . 1 . Blast 1 | . . . . . . 1 Smash 2 | . . 2 . . . . Melee Attacks 33 | . 3 25 5 . . . Impact 33 | . 3 25 5 . . . Slashing . | . . . . . . . Piercing . | . . . . . . . Sneak Attacks 6 | . 1 4 1 . . . Combat Hostiles . | . . . . . . . Follow-up Attacks . | . . . . . . . Damage Inflicted 6208 | 100 285 1239 941 2080 346 1217 Guns 449 | 100 196 . . . . 153 Cannons 967 | . . . . . 300 667 Explosions 4271 | . . 859 889 2080 46 397 Melee 521 | . 89 380 52 . . . Ramming . | . . . . . . . Kinetic 688 | 100 196 . . . . 392 Thermal 761 | . . . 112 . 300 349 Explosive 4082 | . . 782 777 2080 46 397 Electromagnetic 156 | . . 77 . . . 79 Impact 521 | . 89 380 52 . . . Slashing . | . . . . . . . Piercing . | . . . . . . . Highest Corruption 5 | . . 5 . . . . Average Corruption 5 | . . 5 . . . . Corruption Purged . | . . . . . . . Corruption Blocked . | . . . . . . . Effects 8 | . . 8 . . . . Message Errors 1 | . . 1 . . . . Matter Fused 3 | . . 3 . . . . Data Loss (minor) 2 | . . 2 . . . . Data Loss (major) 2 | . . 2 . . . . Overload Shots . | . . . . . . . Overflow Damage 387 | . 5 168 131 55 20 8 Projectiles 20 | . . . . . 20 . Explosions 283 | . . 89 131 55 . 8 Melee 84 | . 5 79 . . . . Knockbacks 3 | . . . . . . 3 Impact . | . . . . . . . Kinetic 3 | . . . . . . 3 Secondary . | . . . . . . . Self-Inflicted Damage 373 | . . . 201 172 . . Shots 11 | . . . 6 5 . . Rammed . | . . . . . . . Targets Rammed . | . . . . . . . Kicked . | . . . . . . . Crushed . | . . . . . . . Highest Temperature 390 | . 6 20 6 27 120 390 Average Temperature 76 | . 6 9 4 13 50 116 Received Heat Transfer 1242 | . 24 246 72 369 72 459 Effects 1 | . . . . . . 1 Energy Bleed 1 | . . . . . . 1 Siege Activations . | . . . . . . . Robots Corrupted 1 | . . 1 . . . . Combat Hostiles 1 | . . 1 . . . . Parts Fried 3 | . . 3 . . . . Impact Corruptions 6 | . 1 5 . . . . Robots Melted 1 | . . . . . 1 . Combat Hostiles 1 | . . . . . 1 . Parts Melted 4 | . . . . . 4 . Heat Transferred 1123 | . . . 50 . 444 629 Parts Sabotaged . | . . . . . . . Parts Stolen . | . . . . . . . Parts Stripped . | . . . . . . . Power Chain Reactions . | . . . . . . . Missiles Intercepted . | . . . . . . . Alert | -11 -10 -9 -8 -8 -8 -8 ------- Run | Scr Mat Mat Mat Gar Mat Sto Peak Influence 823 | 10 128 426 506 823 409 463 Initial 401 | . 6 53 119 328 401 172 Average 333 | 4 76 229 348 580 369 336 Maximum Alert Level 3 | . . 2 2 3 2 2 Low Security (%) 23 | 100 100 24 14 . . 21 Level 1 37 | . . 64 49 14 45 38 Level 2 31 | . . 11 35 49 54 39 Level 3 7 | . . . . 35 . . Level 4 . | . . . . . . . Level 5 . | . . . . . . . High Security . | . . . . . . . Max Security . | . . . . . . . Squads Dispatched 7 | . 2 1 2 . 2 . Investigation 1 | . . . . . 1 . Extermination . | . . . . . . . Reinforcement 4 | . 2 1 . . 1 . Assault . | . . . . . . . Garrison 2 | . . . 2 . . . Intercept . | . . . . . . . Searches Triggered . | . . . . . . . Construction Impeded 1 | . . 1 . . . . Haulers Reinforced . | . . . . . . . Active Scanning Responses . | . . . . . . . Cargo Convoy Interrupts . | . . . . . . . Stealth | -11 -10 -9 -8 -8 -8 -8 --------- Run | Scr Mat Mat Mat Gar Mat Sto Distress Signals 6 | . 2 2 1 . . 1 Communications Jammed . | . . . . . . . Distress Signals . | . . . . . . . Times Spotted 73 | . 8 13 15 19 5 13 Peak Tracking Total 10 | . 5 6 7 10 2 5 Tactical Retreats 2 | . 1 . . 1 . . Traps | -11 -10 -9 -8 -8 -8 -8 ------- Run | Scr Mat Mat Mat Gar Mat Sto Traps Triggered 3 | . . . . 3 . . Indirectly . | . . . . . . . Trap Hack Attempts . | . . . . . . . Triggered . | . . . . . . . Disarmed . | . . . . . . . Reprogrammed . | . . . . . . . Reused . | . . . . . . . Traps Extracted . | . . . . . . . Installed . | . . . . . . . Triggered . | . . . . . . . Machines | -11 -10 -9 -8 -8 -8 -8 ---------- Run | Scr Mat Mat Mat Gar Mat Sto Machines Disabled 15 | . . 2 9 1 1 2 Max in Single Turn 2 | . . 2 2 1 1 1 Garrison Relay 1 | . . . . 1 . . Machines Sabotaged . | . . . . . . . Garrisons Compromised . | . . . . . . . Overloaded Fab Kills . | . . . . . . . Hacking | -11 -10 -9 -8 -8 -8 -8 --------- Run | Scr Mat Mat Mat Gar Mat Sto Machines Accessed 12 | . 2 2 3 . 2 3 Terminals 8 | . 1 2 1 . 1 3 Fabricators . | . . . . . . . Repair Stations . | . . . . . . . Recycling Units 2 | . 1 . . . 1 . Scanalyzers 1 | . . . 1 . . . Garrison Access 1 | . . . 1 . . . Total Hacks 29 | . 7 6 5 . 4 7 Successful 11 | . 1 1 4 . 2 3 Failed 18 | . 6 5 1 . 2 4 Catastrophic 4 | . 3 1 . . . . Database Lockouts . | . . . . . . . Manual 3 | . . 1 . . 2 . Terminals 22 | . 5 6 2 . 2 7 Fabricators . | . . . . . . . Repair Stations . | . . . . . . . Recycling Units 4 | . 2 . . . 2 . Scanalyzers 2 | . . . 2 . . . Garrison Access 1 | . . . 1 . . . Terminal Hacks 7 | . 1 1 1 . 1 3 Part Schematic 2 | . . . . . . 2 Branch Access Points 1 | . . 1 . . . . Unreport Threat 2 | . . . 1 . 1 . Locate Traps 2 | . 1 . . . . 1 Fabricator Hacks . | . . . . . . . Repair Station Hacks . | . . . . . . . Recycling Unit Hacks 1 | . . . . . 1 . Retrieve Components 1 | . . . . . 1 . Scanalyzer 2 | . . . 2 . . . Insert Component 1 | . . . 1 . . . Analyze 1 | . . . 1 . . . Garrison Access Hacks 1 | . . . 1 . . . Unlock Access 1 | . . . 1 . . . Unauthorized Hacks . | . . . . . . . Terminals . | . . . . . . . Fabricators . | . . . . . . . Repair Stations . | . . . . . . . Recycling Units . | . . . . . . . Scanalyzers . | . . . . . . . Garrison Access . | . . . . . . . Data Cores Recovered 1 | . . . 1 . . . Used . | . . . . . . . Hacking Detections 11 | . 2 2 3 . 2 2 Full Trace Events 2 | . 1 . . . 1 . Feedback Events . | . . . . . . . Feedback Blocked . | . . . . . . . Robot Schematics Acquired . | . . . . . . . Robots Built . | . . . . . . . Authchips . | . . . . . . . Time . | . . . . . . . Total Robot Build Rating . | . . . . . . . Part Schematics Acquired 3 | . . . 1 . . 2 Parts Built . | . . . . . . . Authchips . | . . . . . . . Time . | . . . . . . . Total Part Build Rating . | . . . . . . . Parts Repaired . | . . . . . . . Time . | . . . . . . . Parts Recycled . | . . . . . . . Recycled Matter . | . . . . . . . Retrieved Matter . | . . . . . . . Retrieved Components 2 | . . . . . 2 . Parts Scanalyzed 1 | . . . 1 . . . Part Schematics Acquired 1 | . . . 1 . . . Parts Damaged . | . . . . . . . Bothacking | -11 -10 -9 -8 -8 -8 -8 ------------ Run | Scr Mat Mat Mat Gar Mat Sto Used RIF Installer 1 | . . . . 1 . . Robots Hacked . | . . . . . . . Non-combat . | . . . . . . . Combat . | . . . . . . . Robot Hacks Applied . | . . . . . . . Relay Couplers Released 4 | . . . . 4 . . Machine Destruction 4 | . . . . 4 . . Fabnet Peak Effective % . | . . . . . . . Robots Rewired . | . . . . . . . Allies Hacked . | . . . . . . . Hacks Repelled . | . . . . . . . Allies | -11 -10 -9 -8 -8 -8 -8 -------- Run | Scr Mat Mat Mat Gar Mat Sto Total Allies . | . . . . . . . Largest Group . | . . . . . . . Highest-Rated Group . | . . . . . . . Highest-Rated Ally . | . . . . . . . Total Orders . | . . . . . . . Ally Attacks . | . . . . . . . Total Damage . | . . . . . . . Kills . | . . . . . . . Allies Corrupted . | . . . . . . . Allies Melted . | . . . . . . . Intel | -11 -10 -9 -8 -8 -8 -8 ------- Run | Scr Mat Mat Mat Gar Mat Sto Robot Analysis Total . | . . . . . . . Derelict Logs Recovered . | . . . . . . . Drone Launches . | . . . . . . . Drone Recoveries . | . . . . . . . Exploration | -11 -10 -9 -8 -8 -8 -8 ------------- Run | Scr Mat Mat Mat Gar Mat Sto Turns Passed 2095 | 79 163 468 319 415 203 448 Spaces Moved 1477 | 53 124 333 253 351 123 240 Core 296 | 20 . . . 265 11 . Treads . | . . . . . . . Legs 397 | . . . . 45 112 240 Wheels 642 | 33 124 274 172 39 . . Hover 142 | . . 59 81 2 . . Flight . | . . . . . . . Fastest Speed 50 | 50 80 56 56 50 50 120 Average Speed 95 | 83 80 81 100 84 116 128 Slowest Speed 260 | 100 80 120 120 260 130 130 Overloaded Moves . | . . . . . . . Propulsion Burnouts . | . . . . . . . Robots Hopped . | . . . . . . . Cave-ins Triggered . | . . . . . . . Exploration Rate (%) 30 | 3 32 34 30 65 15 36 Regions Visited 6 Branch Regions 1 Pre-discovered Areas . | . . . . . . . Known Exits Taken 1 | . . . 1 . . . Unknown Exits Taken 4 | 1 1 1 . . 1 . Scrap Searched . | . . . . . . . Spaces Dug 2 | . . 1 . . . 1 Terrain Destroyed 288 | . . 59 107 82 11 29 Melee 1 | . . 1 . . . . Projectile 13 | . . . . . 2 11 AOE 274 | . . 58 107 82 9 18 Terrain Rammed . | . . . . . . . Walls Destroyed . | . . . . . . . Machines Disabled . | . . . . . . . Actions | -11 -10 -9 -8 -8 -8 -8 --------- Run | Scr Mat Mat Mat Gar Mat Sto Total 1940 | 76 158 480 294 439 170 323 Wait 128 | . 12 68 8 18 6 16 Move 1470 | 52 123 332 252 349 122 240 Hop . | . . . . . . . Pick Up 56 | 10 3 17 5 5 9 7 Fast Attach 10 | . 1 . 3 . 1 5 Attach 38 | 7 . 14 2 5 5 5 Detach . | . . . . . . . Swap 13 | 1 1 4 . . 5 2 Drop 30 | . 2 10 3 . 8 7 Fire 128 | 6 13 10 16 28 14 41 Melee 33 | . 3 25 5 . . . Ram . | . . . . . . . Kick . | . . . . . . . Crush . | . . . . . . . Escape Stasis 34 | . . . . 34 . . Rewire . | . . . . . . . Trap . | . . . . . . . Miscellaneous . | . . . . . . . Route ------- -11/Scrapyard -10/Materials -9/Materials (discovered 2 exits: *Mat / Min) -8/Materials -8/Garrison (discovered 3 exits: *Mat x3) -8/Materials -8/Storage History --------- Turn | Location | Event 2 | -11/Scrapyard | Discovered new exit (range 16) 80 | -11/Scrapyard | Entered Materials 241 | -10/Materials | Discovered new exit (range 3) 243 | -10/Materials | Entered another Materials area 243 | -9/Materials | Evolved 2 slots: Propulsion x1, Utility x1 248 | -9/Materials | Identified exit to Mines 314 | -9/Materials | Build established: Mutant 363 | -9/Materials | Lost 3 parts (2n1u) 603 | -9/Materials | Discovered new exit (range 16) 694 | -9/Materials | Lost 3 parts (2n1w) 711 | -9/Materials | Entered another Materials area 711 | -8/Materials | Evolved 2 slots: Propulsion x1, Utility x1 1004 | -8/Materials | Identified exit to Garrison 1030 | -8/Materials | Entered Garrison 1082 | -8/Garrison | Triggered checkpoint 1092 | -8/Garrison | Garrison Relay disabled 1186 | -8/Garrison | Triggered checkpoint 1233 | -8/Garrison | Core integrity fell below 50% 1261 | -8/Garrison | Lost 5 parts (1p2n2u) 1265 | -8/Garrison | Discovered new exit (range 9) 1288 | -8/Garrison | Triggered checkpoint 1288 | -8/Garrison | Triggered checkpoint 1347 | -8/Garrison | Destroyed 10 combat bots 1352 | -8/Garrison | Discovered new exit (range 14) 1355 | -8/Garrison | Lost 4 parts (3n1w) 1435 | -8/Garrison | Discovered new exit (range 10) 1443 | -8/Garrison | Installed Relay Interface Framework 1445 | -8/Garrison | Entered Materials 1583 | -8/Materials | Discovered new exit (range 10) 1648 | -8/Materials | Entered Storage 1782 | -8/Storage | Core integrity fell below 20% 1836 | -8/Storage | Lost 4 parts (1n1u2w) 2096 | -8/Storage | Destroyed by G-47 Trooper with Particle Gun Last Messages --------------- 01941_ K-01 Serf collects debris. 01942_ A-02 Transporter destroyed. 01944_ K-01 Serf collects debris. 01946_ Acquired 18 matter. 01957_ R-06 Scavenger collects Lgt. Treads. 01961_ R-06 Scavenger collects Hvy. Assault Rifle. 01962_ K-01 Serf collects debris. 01971_ Dropped Cld. Ion Engine. 01971_ K-01 Serf collects debris. 01972_ Acquired Hacking Suite. 01973_ K-01 Serf collects debris. 02012_ R-06 Scavenger collects Hvy. EM Shotgun. 02018_ K-01 Serf collects debris. 02027_ Acquired 2 matter. 02028_ Acquired 8 matter. 02030_ K-01 Serf collects debris. 02052_ Storage Shell breached. 02058_ Acquired 5 matter. 02080_ A-02 Transporter sends out distress signal. 02088_ G-47 Trooper knocked back. Map ----- +----------------------------------------------------+ | | | | | | | | | | | | | | | | | ?????????????????????????????????????????????????? | | ?????????????????????????????????????????????????? | | ?????????????????????????????????????????????????? | | ????????????????????????????????????????#####????? | | ?????????????????????????????????????#??#"""#????? | | ????????????????????????????????????? ###"T"###### | | ????????????????????????????????????? # # | | ????????????????????????????????????# #""" #^^ | | ????????????????????????????????????+ #""" # | | ?????????????????????####??#####????# #""" # | | ?????????????????????# ??? #????# # # | | ?????????????????????# """"" #????# #""" + | | ?????????????????????# "%]!" #????# #""" # | | ?????????????????????# """ ###### #""" # | | ?????????????????????# """" a # # | | ?????????????????????# "[!!" ######%########## | | ?????????????????????# """"" #????# ######### | | ?????????????????????# @ #????# "" | | ?????????????????????####gg#####????# T | | ????????????????????????# #???????#% | | ????????????????????????#% +???????# [####### | | ????????????????????????% # ????# ########## | | ???????????????????????## # # # | | ????????????????????????# % + # # | | ????????????????????????# #?? #% %#!! | | ????????????????????????# # ????# +=!* = | | ????????????????????????# # # # !!* | | ????????????????????????# #?????###= %#% =!* ! | | ????????????????????????# #?????### #%=%=%= | | ????????????????????????# #??????## ########## | | ????????????????????????# #??????## #=%#%##### | | ????????????????????????? #???????# # %% # | | ????????????????????????? ????????# #" # | | ????????????????????????? ????????# #T !||# | | ????????????????????????????????????# #" ||]# | | ????????????????????????????????????# + || # | | ????????????????????????????????????# # """ # | | ????????????????????????????????????# # """ # | | ????????????????????????????????????# # """ " | | ????????????????????????????????????# # # | | ????????????????????????????????????# ########## | | ????????????????????????????????????# #?######?? | +----------------------------------------------------+ Best States ------------- Heat Dissipation 58 Energy Generation 14 Energy Capacity 280 Matter Stores 300 Matter Capacity 300 Sight Range 16 Robot Scan Range 14 Terrain Scan Density 10 Armor Coverage 375 Evasion (%) 59 Targeting Accuracy 5 Core Analysis 6 Item Schematics ----------------- Cooling System | -8/Materials | Scanalyzed Gravmag System | -8/Storage | Hacked Adv. Weight Redist. System | -8/Storage | Hacked Robot Schematics ------------------ None Fabricated ------------ Nothing Alien Tech Used ----------------- None Achievements -------------- None Challenges ------------ None Game ------ Seed MinesnifferTachyonBarrier Manual? 0 Play Time 00:32:09 Cumulative 147.4 hours Start 2022.07.11 @ 08:55:01 End 2022.07.11 @ 10:20:56 Sessions 1 Manual Loads 0 Difficulty Rogue Special Mode None Game No. 139 Rogue 138 Adventurer 1 Explorer 0 Win Type - Total 1 Types 1/0/0/0/0/0/0/0/0 Lore% 47 Gallery% 67 Achievement% 48 Wizard Run 0 Options --------- ASCII 0 Keyboard 0 Movement Mouse Keybinds 0 Fullscreen 0 Font 20/SmallcapsGlow Map View 76x50 Tactical HUD 1 Map Filters NONE Filters NONE Steam X RUN: db214978-6993-45ac-9719-f3c3af21599a